{"text_format":"1","workbook":"xlsx","n_sheets":9,"sheets":["Instructivo","DEMANDA ANUAL","VOLUMEN DE QUEJAS","COSTO ADMINISTRACIÓN PÚBLICA","RESUMEN DE COSTOS AP","AUXILIAR COSTO ADMINISTRACIÓN","TIEMPO DE RESPUESTA","CANAL ATENCIÓN","RESUMEN"],"not_rendered":{"charts":0,"images":7,"macros":1,"external_links":0,"defined_names":0,"comments":6,"pivot_tables":0},"unopened":[],"bounds":{"document_bytes":16777216,"sheet_cells":100000,"rows_first":2000,"rows_last":500,"rows_between":2000,"halvings":0,"cell_chars":16384,"cell_head_chars":4096},"cells_cut":0,"cells_raw":0,"read":"whole","date_system":"1900"}

{"sheet":"Instructivo","index":0,"n_rows":70,"n_cols":1,"rows_kept":70,"cut":false,"hidden":false,"merged":[]}
["CRITERIO DE PRIORIZACIÓN DE TRÁMITES ADMINISTRATIVOS"]
["Instructivo"]
["Consideraciones generales"]
[]
["En las hojas “COSTO DE ADMINISTRACIÓN PÚBLICA”y “RESUMEN”  para añadir más trámites y que apliquen las fórmulas, se deberá seleccionar la primera fila y copiarla una por cada trámite de la entidad"]
[]
["Todas las hojas tienen columnas de color celeste, en las cuales NO deben ingresar valores ya que contienen fórmulas."]
["Para la carga en GOB.EC. La institución debe recordar que el peso máximo del archivo es de 2 MB."]
["Esquema de puntuación"]
["Para priorizar un trámite, se realizará un análisis de criterios básicos y adicionales basado en información que disponen las instituciones sujetas a esta norma técnica. Cada criterio será puntuado según los lineamientos presentes en esta norma."]
["a) Demanda Anual"]
["Considerará el volumen o frecuencia de las solicitudes que ingresan al año a cada institución para la gestión de un trámite en particular."]
["La identificación del volumen anual de los trámites se realizará a través de sus registros de transacciones y/o el número de visitas de consulta de información realizadas a través de páginas web institucionales."]
["Para realizar el registro realice lo siguiente:"]
["1.- Seleccione la hoja DEMANDA ANUAL"]
["2.- Ingrese los trámites de la institución registrando el identificador y nombre en las columnas respectivas.  "]
["3.- Para cada trámite debe especificar en la columna DEMANDA ANUAL el volumen o frecuencia anual, de acuerdo a lo mencionado anteriormente."]
["4.- Una vez terminado el llenado solicitado presione el botón PUNTUACIÓN, se ordenara de menor a mayor. "]
["5.- Usted visualizará el ordenamiento de los trámites ingresados de acuerdo al número de  volumen o frecuencia anual."]
["6.- Así mismo, usted visualizará el puntaje obtenido en la columna PUNTUACIÓN de acuerdo al grupo obtenido por cada trámite de acuerdo al número de volumen o frecuencia anual cosiderando lo siguiente: ** Primer grupo (trámites con menor demanda no incluye los trámites con demanda 0 ) = 3\n** Segundo grupo (trámites con demanda intermedia) = 6\n** Tercer grupo (trámites con mayor demanda) = 10"]
["Cada vez que requiera actualizar el puntaje presionando el botón puntuación, debe verificar que la celda de la columna puntaje se encuentren vacías, es decir, se debe borrar cualquier valor de puntaje obtenido previamente."]
["b) Volumen de quejas asociadas a un trámite: "]
["Considerará la cantidad de quejas recibidas en relación a un trámite durante un año. Estas quejas deberán estar documentadas en medios físicos y/o digitales."]
["Para determinar la puntuación, se colocará en una tabla todos los trámites con sus correspondientes quejas ordenándose de menor a mayor. Se dividirá en 2 partes en los que cada grupo contenga la misma cantidad de trámites."]
["Para realizar el registro realice lo siguiente:"]
["1.- Seleccione la hoja VOLUMEN DE QUEJAS"]
["2.- Ingrese los trámites de la institución registrando el identificador y nombre en las columnas respectivas.  Si usted requiere de acuerdo al número de trámites copie filas adicionales que estén dentro del cuadro"]
["3.- Para cada trámite debe especificar en la columna VOLUMEN QUEJAS el número de quejas anual, de acuerdo a lo mencionado anteriormente."]
["4.- Una vez terminado el llenado solicitado presione el botón PUNTUACIÓN."]
["5.- Usted visualizará el ordenamiento de los trámites ingresados de acuerdo al número de  volumen o frecuencia anual."]
["6.- Así mismo, usted visualizará el puntaje obtenido en la columna PUNTUACIÓN de acuerdo al grupo obtenido por cada trámite de acuerdo al número de volumen o frecuencia anual cosiderando lo siguiente: La puntuación se basará en los siguientes grupos:\n** Primer grupo (trámites con menor cantidad de quejas, no incluye los trámites con queja 0 ) = 4\n** Segundo grupo (trámites con mayor porcentaje de quejas) = 10"]
["El valor del volumen de quejas no debe ser superior al valor del volumen de la demana, no le permitirá registrar un valor."]
["c) Costo para la administración pública: "]
["En cada trámite, basado en un caso estándar, se deberá estimar el costo incurrido en el costo de personal y recursos necesarios para su atención desde que el administrado entregó todos los requisitos hasta que la institución entregue el producto, respuesta o servicio requerido en el trámite. Se considerará:"]
["• Costo de personal:"]
["Costo del personal para atender el trámite, se excluyen actividades realizadas automáticamente o que dependen del administrado. El tiempo deberá considerar únicamente el tiempo efectivo de trabajo del personal, no debe considerar el tiempo de espera o de movimiento."]
["• Costo de recursos:"]
["Se deberá considerar el costo directo en el que la institución debe incurrir para atender un trámite. Se debe considerar los insumos o materia prima necesaria u cualquier otro que la institución considere pertinente."]
["Para realizar el registro realice lo siguiente:"]
["1.- Seleccione la hoja COSTO ADMINISTRACIÓN PÚBLICA"]
["2.- Ingrese los trámites de la institución registrando el identificador y nombre en las columnas respectivas.  Si usted requiere de acuerdo al número de trámites copie filas adicionales que estén dentro del cuadro"]
["3.- Para calcular el tiempo de las actividades, utilizar la hoja AUXILIAR COSTO ADMINISTRACIÓN donde deberá listar todas las actividades que realiza la institución en un caso estándar y asignar el tiempo mínimo que toma cada actvidad (en horas). El tiempo total de las actividades, deberá ingresar en la correspondiente celda de la hoja COSTO ADMINISTRACIÓN PÚBLICA"]
["4.- En función de la información registrada en el paso 3, la matriz entregará el costo del personal"]
["5.- Completar la columna \"Costo recursos\", en la cual ingresará el costo directo en el que incurre la institución para entregar el trámite. En este valor se considerarán los valores correspondientes a insumos y/o materia prima mínimos que se invierten por cada trámite (no se considera mano de obra)"]
["6.- La columna \"Costo para la adm. pública\" mostrará el costto de este criterio para cada trámite"]
["7,- Para que la fórmula funcione debe arrastrar hacia abajo al último de los támites ingresados, no copiar"]
["7.- Una vez que disponga del Costo para la administración pública, presionar el botón \"GENERAR\"."]
["8. Visualizar la hoja “RESUMEN DE COSTO AP” en la que va a encontrar copiada las celdas necesarias para el ordenamiento y puntuación de las mismas al presionar el botón “PUNTUACIÓN”"]
[]
["d) Tiempo de respuesta: "]
["Considerará los tiempos que a las instituciones les toma dar respuesta a un trámite desde que reciben la solicitud del administrado hasta la finalización del mismo. Para la definición del tiempo se considerará un caso estándar."]
["Para determinar la puntuación, se colocará en una tabla todos los trámites con el tiempo de respuesta, ordenándose de menor a mayor. Se dividirá en 4 grupos, en los que cada uno contenga la misma cantidad de trámites."]
["Para realizar el registro realice lo siguiente:"]
["1.- Seleccione la hoja TIEMPO DE RESPUESTA"]
["2.- Ingrese los trámites de la institución registrando el identificador y nombre en las columnas respectivas.  Si usted requiere de acuerdo al número de trámites copie filas adicionales que estén dentro del cuadro"]
["3.- Para cada trámite debe especificar en la columna TIEMPO RESPUESTA el tiempo, de acuerdo a lo mencionado anteriormente."]
["4.- Una vez terminado el llenado solicitado presione el botón PUNTUACIÓN."]
["5.- Usted visualizará el ordenamiento de los trámites ingresados de acuerdo al número de  volumen o frecuencia anual."]
["6.- Así mismo, usted visualizará el puntaje obtenido en la columna PUNTUACIÓN de acuerdo al grupo obtenido por cada trámite de acuerdo al número de volumen o frecuencia anual cosiderando lo siguiente:  La puntuación considera lo siguiente:\n** Primer grupo (menor o igual a 40 horas laboralres) = 0\n** Segundo grupo mayor  40 horas laboralres) = 30"]
["e) Canal de atención: "]
["Considerará los canales de atención a través de los cuales el administrado puede iniciar el trámite."]
["Para realizar el registro realice lo siguiente:"]
["1.- Seleccione la hoja CANAL ATENCIÓN"]
["2.- Ingrese los trámites de la institución registrando el identificador y nombre en las columnas respectivas.  Si usted requiere de acuerdo al número de trámites copie filas adicionales que estén dentro del cuadro"]
["3.- Para cada trámite debe seleccionar el canal de atención del trámite en la columna CANAL ATENCIÓN, que pueden ser: \nEl trámite se puede completar totalmente en línea: Se considera trámite totalmente en línea cuando el administrado no requiere realizar ninguna interacción presencial con la institución = 0\nEl trámite no se puede completar totalmente en línea: Se considera este caso, cuando el trámite incluye al menos una actividad, incluido mecanismos de pago, en la que el administrado deba acudir presencialmente a la institución, para la realización de dicho trámite. Los trámites presenciales se consideran dentro de esta categoría = 10"]
["4.- De acuerdo a la selección usted obtendrá la puntuación del trámite que se visualizará en la columna PUNTUACIÓN."]
[]
["f) Resumen"]
["En esta hoja deberá consolidar todas las puntuaciones obtenidas para cada trámite en los criterios a) hasta e). Adicionalmente deberá analizar los criterios adicionales que dispone la norma técnica, para estos últimos solamente deberá seleccionar en la celda correspondiente y la matriz asignará la puntuación adicional. Los criterios que deberá considerar son:\n- NECESIDADES CIUDADANAS: Si la institución ha implementado mecanismos para identificar necesidades ciudadanas respecto al trámite, seleccionar \"SI\", caso contrario, seleccionar \"NO\"\n- SUSCEPTIBILIDAD A CORRUPCIÓN: Si la institución dispone de información documentada sobre presuntos actos de corrupción, seleccionar \"SI\", caso contrario, seleccionar \"NO\"\n- VOLUMEN DE DEVOLUCIONES: Si la institución posee documentación sobre devoluciones del trámite en una cantidad significativa, seleccionar \"SI\", caso contrario, seleccionar \"NO\"\nPara que funcione la lista depelgable debe arrastrar la lista y la puntuación hacia abajo al último de los támites ingresados, no copiar"]
["En la columna puntaje total se realizará la sumatoria de los valores de los criterios básicos y adicionales. Este valor deberá registrarse en la plataforma GOB.EC"]

{"sheet":"DEMANDA ANUAL","index":1,"n_rows":31,"n_cols":4,"rows_kept":31,"cut":false,"hidden":false,"merged":[[0,0,0,3],[1,0,1,3]]}
["PRIORIZACIÓN DE TRÁMITES ADMINISTRATIVOS"]
["DEMANDA ANUAL"]
[]
["IDENTIFICADOR","TRÁMITE","DEMANDA ANUAL","PUNTAJE"]
["MIES-015-02-01","Solicitud de Adopción Internacional para Niñas, Niños y Adolescentes",2,3]
["MIES-023-02-01","Certificado de Sustituto por Solidaridad Humana de Persona con Discapacidad",3,3]
["MIES-015-01-04","Solicitud de Adopción Nacional para Niñas, Niños y Adolescentes por Consentimiento",28,3]
["MIES-024-01-03","Calificación de nuevo beneficiario del Bono Joaquín Gallegos Lara para menores de 18 años viviendo con VIH-SIDA",30,3]
["MIES-016-01-05","Disolución y Liquidación Voluntaria de las Organizaciones Sociales sin fines de lucro.",40,3]
["MIES-015-01-01","Solicitud de Adopción Nacional para Niñas, Niños y Adolescentes",131,3]
["MIES-016-01-04","Reforma y Codificación del Estatuto de las Organizaciones Sociales sin fines de lucro.",159,3]
["MIES-019-01-01","Ingreso a Centros Diurnos de desarrollo integral para personas con discapacidad",225,3]
["MIES-003-01-02","Admisión e Ingreso de la Persona Adulta Mayor en Centros Gerontológicos Residenciales",254,3]
["MIES-021-02-01","Habilitación, Autorización y Transferencia de la Cobertura de Contingencia.",731,6]
["MIES-016-01-01","Aprobación del Estatuto y Otorgamiento de la Personalidad Jurídica de las Organizaciones Sociales sin fines de lucro.",841,6]
["MIES-014-01-01","Otorgamiento de Permisos de Funcionamiento para Centros de Desarrollo Infantil",1094,6]
["MIES-014-01-02","Otorgamiento de Permisos de Funcionamiento para prestadores de servicios de Personas Adultas Mayores, Personas con Discapacidad y Protección Especial",1144,6]
["MIES-016-01-03","Registro de Inclusión o Exclusión de Miembros de las Organizaciones Sociales sin fines de lucro.",1247,6]
["MIES-011-01-01","Admisión de la Persona Adulta Mayor en Centros Gerontológicos de Atención Diurna",1281,6]
["MIES-024-01-02","Calificación de nuevo beneficiario del Bono Joaquín Gallegos Lara para personas con enfermedades catastróficas raras y húerfanas",1293,6]
["MIES-016-01-02","Registro de Directiva de las Organizaciones Sociales sin fines de lucro.",2226,6]
["MIES-025-01-02","Admisión de la solicitud de acceso a la información pública",2332,6]
["MIES-024-01-01","Calificación de nuevo beneficiario del Bono Joaquín Gallegos Lara para personas con discapacidad grave, muy grave y completa",4060,10]
["MIES-013-01-01","Admisión de la Persona Adulta Mayor en Espacios de Socialización y de encuentro.",5450,10]
["MIES-018-01-01","Otorgamiento del Crédito de Desarrollo Humano Individual",11018,10]
["MIES-021-01-03","Denuncias por el no cobro del Bono de Desarrollo Humano y Pensiones",13794,10]
["MIES-012-01-01","Admisión para la Atención Domiciliaria de Personas Adultas Mayores",19341,10]
["MIES-018-02-01","Otorgamiento del Crédito de Desarrollo Humano Asociativo",22965,10]
["MIES-001-01-02","Egreso del Servicio de Centros de Desarrollo Infantil por traslado de la niña o niño a otra unidad de atención o modalidad",35466,10]
["MIES-001-01-01","Ingreso al Servicio de Centros de Desarrollo Infantil para niñas y niños de 1 a 3 años de edad",37500,10]
["MIES-002-01-01","Ingreso al Servicio Misión Ternura - Creciendo con Nuestros Hijos",58480,10]

{"sheet":"VOLUMEN DE QUEJAS","index":2,"n_rows":31,"n_cols":6,"rows_kept":31,"cut":false,"hidden":false,"merged":[[0,0,0,5],[1,0,1,5]]}
["PRIORIZACIÓN DE TRÁMITES ADMINISTRATIVOS"]
["VOLUMEN DE QUEJAS"]
[]
["IDENTIFICADOR","TRÁMITE","VOLUMEN DEMANDA","VOLUMEN DE QUEJAS","PORCENTAJE","PUNTUACIÓN"]
["MIES-015-02-01","Solicitud de Adopción Internacional para Niñas, Niños y Adolescentes",2,0,0,0]
["MIES-023-02-01","Certificado de Sustituto por Solidaridad Humana de Persona con Discapacidad",3,0,0,0]
["MIES-015-01-04","Solicitud de Adopción Nacional para Niñas, Niños y Adolescentes por Consentimiento",28,0,0,0]
["MIES-024-01-03","Calificación de nuevo beneficiario del Bono Joaquín Gallegos Lara para menores de 18 años viviendo con VIH-SIDA",30,0,0,0]
["MIES-016-01-05","Disolución y Liquidación Voluntaria de las Organizaciones Sociales sin fines de lucro.",40,0,0,0]
["MIES-015-01-01","Solicitud de Adopción Nacional para Niñas, Niños y Adolescentes",131,2,1.5267175572519085,10]
["MIES-016-01-04","Reforma y Codificación del Estatuto de las Organizaciones Sociales sin fines de lucro.",159,0,0,0]
["MIES-019-01-01","Ingreso a Centros Diurnos de desarrollo integral para personas con discapacidad",225,2,0.88888888888888884,4]
["MIES-003-01-02","Admisión e Ingreso de la Persona Adulta Mayor en Centros Gerontológicos Residenciales",254,0,0,0]
["MIES-021-02-01","Habilitación, Autorización y Transferencia de la Cobertura de Contingencia.",731,0,0,0]
["MIES-016-01-01","Aprobación del Estatuto y Otorgamiento de la Personalidad Jurídica de las Organizaciones Sociales sin fines de lucro.",841,0,0,0]
["MIES-014-01-01","Otorgamiento de Permisos de Funcionamiento para Centros de Desarrollo Infantil",1094,1,9.1407678244972576E-2,4]
["MIES-014-01-02","Otorgamiento de Permisos de Funcionamiento para prestadores de servicios de Personas Adultas Mayores, Personas con Discapacidad y Protección Especial",1144,0,0,0]
["MIES-016-01-03","Registro de Inclusión o Exclusión de Miembros de las Organizaciones Sociales sin fines de lucro.",1247,0,0,0]
["MIES-011-01-01","Admisión de la Persona Adulta Mayor en Centros Gerontológicos de Atención Diurna",1281,0,0,0]
["MIES-024-01-02","Calificación de nuevo beneficiario del Bono Joaquín Gallegos Lara para personas con enfermedades catastróficas raras y húerfanas",1293,0,0,0]
["MIES-016-01-02","Registro de Directiva de las Organizaciones Sociales sin fines de lucro.",2226,0,0,0]
["MIES-025-01-02","Admisión de la solicitud de acceso a la información pública",2332,0,0,0]
["MIES-024-01-01","Calificación de nuevo beneficiario del Bono Joaquín Gallegos Lara para personas con discapacidad grave, muy grave y completa",4060,4,9.8522167487684734E-2,4]
["MIES-013-01-01","Admisión de la Persona Adulta Mayor en Espacios de Socialización y de encuentro.",5450,1,1.834862385321101E-2,4]
["MIES-018-01-01","Otorgamiento del Crédito de Desarrollo Humano Individual",11018,1,9.0760573606825188E-3,4]
["MIES-021-01-03","Denuncias por el no cobro del Bono de Desarrollo Humano y Pensiones",13794,2,1.4499057561258518E-2,4]
["MIES-012-01-01","Admisión para la Atención Domiciliaria de Personas Adultas Mayores",19341,2,1.0340726953104803E-2,4]
["MIES-018-02-01","Otorgamiento del Crédito de Desarrollo Humano Asociativo",22965,1,4.3544524276072282E-3,4]
["MIES-001-01-02","Egreso del Servicio de Centros de Desarrollo Infantil por traslado de la niña o niño a otra unidad de atención o modalidad",35466,0,0,0]
["MIES-001-01-01","Ingreso al Servicio de Centros de Desarrollo Infantil para niñas y niños de 1 a 3 años de edad",37500,2,5.3333333333333332E-3,4]
["MIES-002-01-01","Ingreso al Servicio Misión Ternura - Creciendo con Nuestros Hijos",58480,3,5.1299589603283173E-3,4]

{"sheet":"COSTO ADMINISTRACIÓN PÚBLICA","index":3,"n_rows":32,"n_cols":9,"rows_kept":32,"cut":false,"hidden":false,"merged":[[0,0,0,5],[1,0,1,5],[3,0,4,0],[3,1,4,1],[3,2,3,4],[3,5,4,5]]}
["PRIORIZACIÓN DE TRÁMITES ADMINISTRATIVOS"]
["COSTOS PARA LA ADMINISTRACIÓN PÚBLICA"]
[]
["IDENTIFICADOR","TRÁMITE","INSUMOS PARA COSTO",null,null,"COSTO PARA LA ADM. PÚBLICA",null,"SBU",400]
[null,null,"TIEMPO (HORAS)","COSTO PERSONAL","COSTO RECURSOS"]
["MIES-015-02-01","Solicitud de Adopción Internacional para Niñas, Niños y Adolescentes",136,{"$f":"C6*$I$4/160","v":340},0.2,{"$f":"D6+E6","v":340.2}]
["MIES-023-02-01","Certificado de Sustituto por Solidaridad Humana de Persona con Discapacidad",35,{"$f":"C7*$I$4/160","v":87.5},0.2,{"$f":"D7+E7","v":87.7}]
["MIES-015-01-04","Solicitud de Adopción Nacional para Niñas, Niños y Adolescentes por Consentimiento",184,460,0.2,460.2]
["MIES-024-01-03","Calificación de nuevo beneficiario del Bono Joaquín Gallegos Lara para menores de 18 años viviendo con VIH-SIDA",288,720,0.2,720.2]
["MIES-016-01-05","Disolución y Liquidación Voluntaria de las Organizaciones Sociales sin fines de lucro.",118,295,0.2,295.2]
["MIES-015-01-01","Solicitud de Adopción Nacional para Niñas, Niños y Adolescentes",742,1855,0.2,1855.2]
["MIES-016-01-04","Reforma y Codificación del Estatuto de las Organizaciones Sociales sin fines de lucro.",118,295,0.2,295.2]
["MIES-019-01-01","Ingreso a Centros Diurnos de desarrollo integral para personas con discapacidad",8,20,0.2,20.2]
["MIES-003-01-02","Admisión e Ingreso de la Persona Adulta Mayor en Centros Gerontológicos Residenciales",115,287.5,0.2,287.7]
["MIES-021-02-01","Habilitación, Autorización y Transferencia de la Cobertura de Contingencia.",240,600,0.2,600.20000000000005]
["MIES-016-01-01","Aprobación del Estatuto y Otorgamiento de la Personalidad Jurídica de las Organizaciones Sociales sin fines de lucro.",118,295,0.2,295.2]
["MIES-014-01-01","Otorgamiento de Permisos de Funcionamiento para Centros de Desarrollo Infantil",120,300,0.25,300.25]
["MIES-014-01-02","Otorgamiento de Permisos de Funcionamiento para prestadores de servicios de Personas Adultas Mayores, Personas con Discapacidad y Protección Especial",120,300,0.25,300.25]
["MIES-016-01-03","Registro de Inclusión o Exclusión de Miembros de las Organizaciones Sociales sin fines de lucro.",118,295,0.2,295.2]
["MIES-011-01-01","Admisión de la Persona Adulta Mayor en Centros Gerontológicos de Atención Diurna",115,287.5,0.2,287.7]
["MIES-024-01-02","Calificación de nuevo beneficiario del Bono Joaquín Gallegos Lara para personas con enfermedades catastróficas raras y húerfanas",288,720,0.2,720.2]
["MIES-016-01-02","Registro de Directiva de las Organizaciones Sociales sin fines de lucro.",118,295,0.2,295.2]
["MIES-025-01-02","Admisión de la solicitud de acceso a la información pública",120,300,0.2,300.2]
["MIES-024-01-01","Calificación de nuevo beneficiario del Bono Joaquín Gallegos Lara para personas con discapacidad grave, muy grave y completa",288,720,0.2,720.2]
["MIES-013-01-01","Admisión de la Persona Adulta Mayor en Espacios de Socialización y de encuentro.",115,287.5,0.2,287.7]
["MIES-018-01-01","Otorgamiento del Crédito de Desarrollo Humano Individual",21,52.5,0.15,52.65]
["MIES-021-01-03","Denuncias por el no cobro del Bono de Desarrollo Humano y Pensiones",359,897.5,0.2,897.7]
["MIES-012-01-01","Admisión para la Atención Domiciliaria de Personas Adultas Mayores",115,287.5,0.2,287.7]
["MIES-018-02-01","Otorgamiento del Crédito de Desarrollo Humano Asociativo",21,52.5,0.15,52.65]
["MIES-001-01-02","Egreso del Servicio de Centros de Desarrollo Infantil por traslado de la niña o niño a otra unidad de atención o modalidad",0.5,1.25,0.2,1.45]
["MIES-001-01-01","Ingreso al Servicio de Centros de Desarrollo Infantil para niñas y niños de 1 a 3 años de edad",121,302.5,0.2,302.7]
["MIES-002-01-01","Ingreso al Servicio Misión Ternura - Creciendo con Nuestros Hijos",121,302.5,0.2,{"$f":"D32+E32","v":302.7}]

{"sheet":"RESUMEN DE COSTOS AP","index":4,"n_rows":31,"n_cols":4,"rows_kept":31,"cut":false,"hidden":false,"merged":[[0,0,0,5],[1,0,1,5]]}
["PRIORIZACIÓN DE TRÁMITES ADMINISTRATIVOS"]
["COSTOS PARA LA ADMINISTRACIÓN PÚBLICA"]
[]
["IDENTIFICADOR","TRÁMITE","COSTO PARA LA ADM. PÚBLICA","PUNTUACIÓN"]
["MIES-001-01-02","Egreso del Servicio de Centros de Desarrollo Infantil por traslado de la niña o niño a otra unidad de atención o modalidad",1.45,5]
["MIES-019-01-01","Ingreso a Centros Diurnos de desarrollo integral para personas con discapacidad",20.2,5]
["MIES-018-02-01","Otorgamiento del Crédito de Desarrollo Humano Asociativo",52.65,5]
["MIES-018-01-01","Otorgamiento del Crédito de Desarrollo Humano Individual",52.65,5]
["MIES-023-02-01","Certificado de Sustituto por Solidaridad Humana de Persona con Discapacidad",87.7,5]
["MIES-011-01-01","Admisión de la Persona Adulta Mayor en Centros Gerontológicos de Atención Diurna",287.7,5]
["MIES-013-01-01","Admisión de la Persona Adulta Mayor en Espacios de Socialización y de encuentro.",287.7,5]
["MIES-003-01-02","Admisión e Ingreso de la Persona Adulta Mayor en Centros Gerontológicos Residenciales",287.7,5]
["MIES-012-01-01","Admisión para la Atención Domiciliaria de Personas Adultas Mayores",287.7,5]
["MIES-016-01-01","Aprobación del Estatuto y Otorgamiento de la Personalidad Jurídica de las Organizaciones Sociales sin fines de lucro.",295.2,10]
["MIES-016-01-05","Disolución y Liquidación Voluntaria de las Organizaciones Sociales sin fines de lucro.",295.2,10]
["MIES-016-01-04","Reforma y Codificación del Estatuto de las Organizaciones Sociales sin fines de lucro.",295.2,10]
["MIES-016-01-02","Registro de Directiva de las Organizaciones Sociales sin fines de lucro.",295.2,10]
["MIES-016-01-03","Registro de Inclusión o Exclusión de Miembros de las Organizaciones Sociales sin fines de lucro.",295.2,10]
["MIES-025-01-02","Admisión de la solicitud de acceso a la información pública",300.2,10]
["MIES-014-01-01","Otorgamiento de Permisos de Funcionamiento para Centros de Desarrollo Infantil",300.25,10]
["MIES-014-01-02","Otorgamiento de Permisos de Funcionamiento para prestadores de servicios de Personas Adultas Mayores, Personas con Discapacidad y Protección Especial",300.25,10]
["MIES-001-01-01","Ingreso al Servicio de Centros de Desarrollo Infantil para niñas y niños de 1 a 3 años de edad",302.7,10]
["MIES-002-01-01","Ingreso al Servicio Misión Ternura - Creciendo con Nuestros Hijos",302.7,10]
["MIES-015-02-01","Solicitud de Adopción Internacional para Niñas, Niños y Adolescentes",340.2,20]
["MIES-015-01-04","Solicitud de Adopción Nacional para Niñas, Niños y Adolescentes por Consentimiento",460.2,20]
["MIES-021-02-01","Habilitación, Autorización y Transferencia de la Cobertura de Contingencia.",600.20000000000005,20]
["MIES-024-01-03","Calificación de nuevo beneficiario del Bono Joaquín Gallegos Lara para menores de 18 años viviendo con VIH-SIDA",720.2,20]
["MIES-024-01-01","Calificación de nuevo beneficiario del Bono Joaquín Gallegos Lara para personas con discapacidad grave, muy grave y completa",720.2,20]
["MIES-024-01-02","Calificación de nuevo beneficiario del Bono Joaquín Gallegos Lara para personas con enfermedades catastróficas raras y húerfanas",720.2,20]
["MIES-021-01-03","Denuncias por el no cobro del Bono de Desarrollo Humano y Pensiones",897.7,20]
["MIES-015-01-01","Solicitud de Adopción Nacional para Niñas, Niños y Adolescentes",1855.2,20]

{"sheet":"AUXILIAR COSTO ADMINISTRACIÓN","index":5,"n_rows":133,"n_cols":23,"rows_kept":133,"cut":false,"hidden":false,"merged":[[109,1,109,2],[109,5,109,6],[109,9,109,10],[2,1,2,2],[2,5,2,6],[2,9,2,10],[29,1,29,2],[29,5,29,6],[29,9,29,10],[57,1,57,2],[57,5,57,6],[57,9,57,10],[83,1,83,2],[83,5,83,6],[83,9,83,10],[2,13,2,14],[2,17,2,18],[2,21,2,22],[29,13,29,14],[29,17,29,18],[29,21,29,22],[112,13,112,14],[112,17,112,18],[60,13,60,14],[60,17,60,18],[60,21,60,22],[86,13,86,14],[86,17,86,18],[86,21,86,22]]}
[]
[]
["TRÁMITE:","Ingreso al Servicio de Centros de Desarrollo Infantil para niñas y niños de 1 a 3 años de edad",null,null,"TRÁMITE:","Egreso del Servicio de Centros de Desarrollo Infantil por traslado de la niña o niño a otra unidad de atención o modalidad",null,null,"TRÁMITE:","Ingreso al Servicio Misión Ternura - Creciendo con Nuestros Hijos",null,null,"TRÁMITE:","Admisión e Ingreso de la Persona Adulta Mayor en Centros Gerontológicos Residenciales",null,null,"TRÁMITE:","Admisión de la Persona Adulta Mayor en Centros Gerontológicos de Atención Diurna",null,null,"TRÁMITE:","Admisión para la Atención Domiciliaria de Personas Adultas Mayores"]
["NO.","ACTIVIDAD","TIEMPO (HORAS)",null,"NO.","ACTIVIDAD","TIEMPO (HORAS)",null,"NO.","ACTIVIDAD","TIEMPO (HORAS)",null,"NO.","ACTIVIDAD","TIEMPO (HORAS)",null,"NO.","ACTIVIDAD","TIEMPO (HORAS)",null,"NO.","ACTIVIDAD","TIEMPO (HORAS)"]
[1,"Recepción de información de ficha",0.33333333333333331,null,1,"Realizar solicitud de egreso de usuario por traslado a otra unidad de atención o modalidad",{"$f":"30/60","v":0.5},null,1,"La Información entregada por el solicitante, es remitida al Coordinador Técnico Territorial de Desarrollo Infantil.",0.33333333333333331,null,1,"El Coordinador de Servicios Sociales o el Coordinador del Centro Gerontólogico recibe al adulto mayor y realiza la ficha de admisión.",5.44,null,1,"El Coordinador de Servicios Sociales o el Coordinador del Centro Gerontológico recibe al adulto mayor y realiza la ficha de admisión.",5.44,null,1,"El Coordinador de Servicios Sociales o el Coordinador del Centro Gerontológico recibe al adulto mayor y realiza la ficha de admisión",5.44]
[2,"Generar puntaje  de índice de condiciones de vida y enviar",108.33333333333333,null,2,null,null,null,2,"El/la Coordinador/a Técnico Territorial de Desarrollo Infantil; realiza el levantamiento de la ficha de vulnerabilidad a la familia requirente mediante el aplicativo web.",7.666666666666667,null,2,"Validar la documentación entregada por el usuario y realiza la ficha de valoración social.",8.76,null,2,"Validar la documentación entregada por el usuario y realiza la ficha de valoración social.",8.76,null,2,"Validar la documentación entregada por el usuario y realiza la ficha de valoración social.",8.76]
[3,"Contactar posibles usuarios",6.2,null,3,null,null,null,3,"Planta Central  a través de la Dirección de Gestión de Información y Datos procesa la información  y genera el puntaje de los datos que se levantaron mediante el aplicativo web.",108,null,3,"Revisar la información en el Registro Social del usuario.",8.76,null,3,"Revisar la información en el Registro Social del usuario.",8.76,null,3,"Revisar la información en el Registro Social del usuario.",8.76]
[4,"Receptar requisitos",2.1666666666666665,null,4,null,null,null,4,"La Dirección de Gestión de Información y  Datos remite a la información las unidades desconcentradas Distritales o Zonales los datos procesados con el puntaje obtenido y entregan los resultados al Educador/a CNH; para informar a la familia acerca del ingreso al servicio",5,null,4,"El Coordinador de Servicios Sociales o el Coordinador del Centro Gerontólogico notifica al Distrito sobre acogida o solicitud.",8.76,null,4,"El Coordinador de Servicios Sociales o el Coordinador del Centro Gerontológico notifica al Distrito sobre acogida o solicitud.",8.76,null,4,"El Coordinador de Servicios Sociales o el Coordinador del Centro Gerontológico notifica al Distrito sobre acogida o solicitud.",8.76]
[5,"Ejecutar atención del servicio",4,null,5,null,null,null,5,null,null,null,5,"Buscar disponibilidad en Centros Gerontológicos, de acuerdo a las necesidades de la persona adulta mayor.",20,null,5,"Buscar disponibilidad en Centros Gerontológicos, de acuerdo a las necesidades de la persona adulta mayor.",20,null,5,"Buscar disponibilidad en Centros Gerontológicos, de acuerdo a las necesidades de la persona adulta mayor.",20]
[6,null,null,null,6,null,null,null,6,null,null,null,6,"Derivar al Adulto Mayor al Centro Gerontológico disponible.",8.76,null,6,"Derivar al Adulto Mayor al Centro Gerontológico disponible.",8.76,null,6,"Derivar al Adulto Mayor al Centro Gerontológico disponible.",8.76]
[7,null,null,null,7,null,null,null,7,null,null,null,7,"En caso que el Adulto Mayor no posea documento de identidad se gestiona con el Registro Civil la emisión.",24.76,null,7,"En caso que el Adulto Mayor no posea documento de identidad se gestiona con el Registro Civil la emisión.",24.76,null,7," En caso que el Adulto Mayor no posea documento de identidad se gestiona con el Registro Civil la emisión.",24.76]
[8,null,null,null,8,null,null,null,8,null,null,null,8,"El Coordinador de Servicios Sociales o el Coordinador del Centro Gerontólogico gestiona la valoración médica del Adulto Mayor con el Ministerio de Salud Pública.",24.08,null,8,"El Coordinador de Servicios Sociales o el Coordinador del Centro Gerontológico de Atención Diurna gestiona la valoración médica del Adulto Mayor con el Ministerio de Salud Pública.",24.08,null,8,"El Coordinador de Servicios Sociales o el Coordinador del Centro Gerontológico gestiona la valoración médica del Adulto Mayor con el Ministerio de Salud Pública.",24.08]
[9,null,null,null,9,null,null,null,9,null,null,null,9,"Ingreso del Adulto Mayor al Centro Gerontológico Residencial.",5.76,null,9," Ingreso del Adulto Mayor al Centro Gerontológico de Atención Diurna.",5.76,null,9,"Ingreso del Adulto Mayor al servicio de Atención Domiciliaria",5.76]
[10,null,null,null,10,null,null,null,10,null,null,null,10,null,null,null,10,null,null,null,10]
[11,null,null,null,11,null,null,null,11,null,null,null,11,null,null,null,11,null,null,null,11]
[12,null,null,null,12,null,null,null,12,null,null,null,12,null,null,null,12,null,null,null,12]
[13,null,null,null,13,null,null,null,13,null,null,null,13,null,null,null,13,null,null,null,13]
[14,null,null,null,14,null,null,null,14,null,null,null,14,null,null,null,14,null,null,null,14]
[15,null,null,null,15,null,null,null,15,null,null,null,15,null,null,null,15,null,null,null,15]
[null,null,null,null,null,null,null,null,null,null,null,null,16,null,null,null,16,null,null,null,16]
[null,null,null,null,null,null,null,null,null,null,null,null,17,null,null,null,17,null,null,null,17]
[null,null,null,null,null,null,null,null,null,null,null,null,18,null,null,null,null,null,null,null,18]
[null,null,null,null,null,null,null,null,null,null,null,null,null,null,null,null,null,null,null,null,19]
[null,null,null,null,null,null,null,null,null,null,null,null,null,null,null,null,null,null,null,null,20]
[null,null,null,null,null,null,null,null,null,null,null,null,null,null,null,null,null,null,null,null,21]
[null,"SUMATORIA ACTIVIDADES",{"$f":"SUM(C4:C25)","v":121.03333333333333},null,null,"SUMATORIA ACTIVIDADES",{"$f":"SUM(G4:G25)","v":0.5},null,null,"SUMATORIA ACTIVIDADES",{"$f":"SUM(K4:K25)","v":121},null,null,"SUMATORIA ACTIVIDADES",{"$f":"SUM(O5:O25)","v":115.08},null,null,"SUMATORIA ACTIVIDADES",{"$f":"SUM(S5:S25)","v":115.08},null,null,"SUMATORIA ACTIVIDADES",{"$f":"SUM(W5:W25)","v":115.08}]
[]
[]
[]
["TRÁMITE:","Admisión de la Persona Adulta Mayor en Espacios de Socialización y Encuentro",null,null,"TRÁMITE:","Otorgamiento de Permisos de Funcionamiento para Centros de Desarrollo Infantil",null,null,"TRÁMITE:","Otorgamiento de Permisos de Funcionamiento para prestadores de servicios de Personas Adultas Mayores, Personas con Discapacidad y Protección Especial  ",null,null,"TRÁMITE:","Solicitud de Adopción Nacional para Niñas, Niños y Adolescentes",null,null,"TRÁMITE:","Solicitud de Adopción Nacional para Niñas, Niños y Adolescentes por Consentimiento",null,null,"TRÁMITE:","Solicitud de Adopción Internacional para Niñas, Niños y Adolescentes"]
["NO.","ACTIVIDAD","TIEMPO (HORAS)",null,"NO.","ACTIVIDAD","TIEMPO (HORAS)",null,"NO.","ACTIVIDAD","TIEMPO (HORAS)",null,"NO.","ACTIVIDAD","TIEMPO (HORAS)",null,"NO.","ACTIVIDAD","TIEMPO (HORAS)",null,"NO.","ACTIVIDAD","TIEMPO (HORAS)"]
[1,"El Coordinador de Servicios Sociales o el Coordinador del Centro Gerontólogico recibe al adulto mayor y realiza la ficha de admisión.",4,null,1,"El solicitante debe acercarse al Balcón de Servicio de la Dirección Distrital del MIES, mas cercana, y entregar la documentación habilitante.",2,null,1,"El solicitante debe acercarse al Balcón de Servicio de la Dirección Distrital del MIES, mas cercana, y entregar la documentación habilitante.",2,null,1,"El Coordinador de la Unidad Técnica de Adopciones (UTA) receptará el formulario de registro de los solicitantes de manera fisica o virtual.",2,null,1,"El Equipo Técnico de la Unidad Técnica de Adopciones (UTA), brindará asesoría a la/s persona/s que pretende/n otorgar el consentimiento para la adopción de su hija/o.",10,null,1,"La Dirección de Adopciones  verifica la vigencia del Convenio con Agencias Intermediarias para la Adopción Internacional",9]
[2,"Validar la documentación entregada por el usuario y realiza la ficha de valoración social.",16,null,2,"La/el Asistente Técnica/o del Balcón de Servicios de la Dirección Distrital del MIES, recepta el requerimiento del solicitante y la documentación habilitante (expediente de requisitos o documentos de respaldo), donde verifica que la documentación esté completa y con firmas de respaldo. Si la documentación no se encuentra completa, devuelve los mismos al solicitante e informa sobre los requisitos faltantes",2,null,2,"La/el Asistente Técnica/o del Balcón de Servicios de la Dirección Distrital del MIES, recepta el requerimiento del solicitante y la documentación habilitante (expediente de requisitos o documentos de respaldo), donde verifica que la documentación esté completa y con firmas de respaldo. Si la documentación no se encuentra completa, devuelve los mismos al solicitante e informa sobre los requisitos faltantes",2,null,2,"El Equipo Técnico de la UTA realizará la entrevista inicial a los solicitantes, de manera presencial o virtual.",2,null,2,"El Equipo Técnico de la UTA elaborará el informe sobre el cumplimiento de esta obligación y la asesoría brindada.",165,null,2,"La Dirección de Adopciones realiza la revisión, validación de los requisitos presentados por la familia a través de los Organismos Internacionales Acreditados para la Adopción Internacional conforme a la legislación ecuatoriana e internacional exige.",20]
[3,"Revisar la información en el Registro Social del usuario.",19.920000000000002,null,3,"Si el solicitante entrega la documentación completa, la/el Técnica/o Asistente Técnico de Balcón de Servicios de la Dirección Distrital del MIES, ingresa la información proporcionada por el Solicitante en el sistema SIIMIES e imprime el Formulario de Solicitud.",1,null,3,"Si el solicitante entrega la documentación completa, la/el Técnica/o Asistente Técnico de Balcón de Servicios de la Dirección Distrital del MIES, ingresa la información proporcionada por el Solicitante en el sistema SIIMIES e imprime el Formulario de Solicitud.",1,null,3,"El Equipo Técnico de la UTA llenará la ficha de entrevista inicial de los solicitantes e ingresará la información a la base de datos del Sistema de Adopciones.",6,null,3,"El Coordinador de la UTA entregará el informe al Juez que conoce el proceso.",9,null,3,"El Abogado, Psicólogo y Trabajadora Social analizan y validan el expediente de la familia y registran a los solicitantes en la base de las familias idóneas.",40]
[4,"El Coordinador de Servicios Sociales o el Coordinador del Centro Gerontólogico notifica al Distrito sobre acogida o solicitud.",8,null,4,"Una vez ingresada la solicitud al sistema, la/el Coordinadora/or de la unidad de servicios sociales de la Dirección Distrital asigna en el término de 1 día al técnico de la unidad de servicios sociales de la Dirección Distrital del MIES que será el responsable de atender el trámite.",16,null,4,"Una vez ingresada la solicitud al sistema, la/el Coordinadora/or de la unidad de servicios sociales de la Dirección Distrital asigna en el término de 1 día al técnico de la unidad de servicios sociales de la Dirección Distrital del MIES que será el responsable de atender el trámite.",16,null,4,"El Equipo Técnico de la UTA receptará la Constancia de continuar la Formación Continua.",8,null,4,null,null,null,4,"Receptar expedientes de familias con declaratoria de idoneidad internacional.",12]
[5," En caso que el Adulto Mayor no posea documento de identidad se gestiona con el Registro Civil la emisión.",24.92,null,5,"La/el técnica técnica/o de la unidad de servicios sociales de la Dirección Distrital del MIES, procede a revisar cada uno de los documentos presentados y verifica si cumple o no con la normativa del servicio.",16,null,5,"La/el técnica técnica/o de la unidad de servicios sociales de la Dirección Distrital del MIES, procede a revisar cada uno de los documentos presentados y verifica si cumple o no con la normativa del servicio.",16,null,5,"El Equipo Técnico de la UTA ejecutará el proceso de Formación Continua.",180,null,5,null,null,null,5,"Se emite la declaratoria de idoneidad de la familia al Comité de Asignación Familiar Zonal, en caso que el informe sea favorable",20]
[6,"El Coordinador de Servicios Sociales o el Coordinador del Centro Gerontólogico gestiona la valoración médica del Adulto Mayor con el Ministerio de Salud Pública.",33.4,null,6,"La/el técnica/o de la unidad de servicios sociales de la Dirección Distrital del MIES, elabora un cronograma en coordinación con los servicios para realizar las visitas de verificación.",16,null,6,"La/el técnica/o de la unidad de servicios sociales de la Dirección Distrital del MIES, elabora un cronograma en coordinación con los servicios para realizar las visitas de verificación.",16,null,6,"El Equipo Técnico de la UTA evaluará, aprobará y emitirá el documento de participación en la Formación Continua.",20,null,6,null,null,null,6,"Los expedientes son remitidos al Comité de Asignación Familiar Zonal, aplicando exclusivamente para la adopción de niñas, niños y adolescentes de atención prioritaria (niñas y niños mayores de cuatro años con algún tipo de discapacidad moderada a grave, grupos de hermanos mayor a tres años y pertenencia a alguna etnia minoritaria).",6]
[7," Ingreso del Adulto Mayor al servicio de Espacios de Socialización y encuentro.",8.64,null,7,"La/el técnica/o de la unidad de servicios Sociales de la Dirección Distrital del MIES, realiza la visita, a partir de la planificación de la visita de verificación, con el acompañamiento del representante legal o directora/o o coordinadora/or de la unidad de atención y registra la información en la ficha de evaluación de calidad, en el que conste el nombre y firma de los responsables y fecha en que se realizó la visita, la cual permitirá evaluar el cumplimiento de la norma técnica.",25,null,7,"La/el técnica/o de la unidad de servicios Sociales de la Dirección Distrital del MIES, realiza la visita, a partir de la planificación de la visita de verificación, con el acompañamiento del representante legal o directora/o o coordinadora/or de la unidad de atención y registra la información en la ficha de evaluación de calidad, en el que conste el nombre y firma de los responsables y fecha en que se realizó la visita, la cual permitirá evaluar el cumplimiento de la norma técnica.",25,null,7,"El Equipo Técnico de la UTA receptará la solicitud y requisitos a los solicitantes.",4,null,7,null,null,null,7,"Asignación de la niña, niño o adolescente.\nReceptar la aceptación o no aceptación de la familia extranjera solicitante",6]
[8,null,null,null,8,"Una vez ejecutada la visita de verificación, la/el técnica/o de la unidad de servicios sociales de la Dirección Distrital del MIES,  al sistema la información registrada en el formulario, para obtener la calificación de la aplicación de la ficha de evaluación de calidad",20,null,8,"Una vez ejecutada la visita de verificación, la/el técnica/o de la unidad de servicios sociales de la Dirección Distrital del MIES,  al sistema la información registrada en el formulario, para obtener la calificación de la aplicación de la ficha de evaluación de calidad",20,null,8,"El Coordinador de la UTA verificará los requisitos y elaborará el informe legal.",40,null,8,null,null,null,8,"Preparar a la niña, niño y adolescente  y a la familia extranjera solicitante para la adopción.",6]
[9,null,null,null,9,"La/el técnica/o de la unidad de servicios sociales de la Dirección Distrital del MIES obtiene directamente del sistema SIIMIES, gestión Permisos de Funcionamiento las calificaciones de las unidades de atención. De acuerdo al puntaje obtenido se emitirá o no el permiso de funcionamiento. En caso que los puntajes no permitan la obtención del permiso de funcionamiento y la/el técnica/o de la unidad de servicios sociales de la Dirección Distrital del MIES, conforme a la Calificación D obtenida a partir de la ficha de evaluación de calidad, elabora un informe técnico y recomienda un Plan de Mejora que tiene que ser implementado de forma inmediata por el servicio, que permitirá el cumplimiento de la norma técnica. ",8,null,9,"La/el técnica/o de la unidad de servicios sociales de la Dirección Distrital del MIES obtiene directamente del sistema SIIMIES, gestión Permisos de Funcionamiento las calificaciones de las unidades de atención. De acuerdo al puntaje obtenido se emitirá o no el permiso de funcionamiento. En caso que los puntajes no permitan la obtención del permiso de funcionamiento y la/el técnica/o de la unidad de servicios sociales de la Dirección Distrital del MIES, conforme a la Calificación D obtenida a partir de la ficha de evaluación de calidad, elabora un informe técnico y recomienda un Plan de Mejora que tiene que ser implementado de forma inmediata por el servicio, que permitirá el cumplimiento de la norma técnica. ",8,null,9,"El Equipo Psicosocial de la UTA realizará entrevistas y evaluaciones psicológicas y socioeconómicas a los solicitantes.",130,null,9,null,null,null,9,"Ejecutar el proceso de Apego y Vinculación Afectiva (emparentamiento).",8]
[10,null,null,null,10,"Si el puntaje (calificación A,B,C), permite la obtención del permiso de funcionamiento, la/el técnica/o de la unidad de servicios sociales de la Dirección Distrital del MIES, imprime del sistema el Permiso de Funcionamiento.",6,null,10,"Si el puntaje (calificación A,B,C), permite la obtención del permiso de funcionamiento, la/el técnica/o de la unidad de servicios sociales de la Dirección Distrital del MIES, imprime del sistema el Permiso de Funcionamiento.",6,null,10,"El Equipo Psicosocial de la UTA realizará visitas domiciliarias y valoraciones al entorno familiar y comunitario de manera presencial o virtual.",130,null,10,null,null,null,10,"Seguimiento a la fase judicial de la adopción.",9]
[11,null,null,null,11,"La autoridad de la unidad desconcentrada legaliza mediante su firma y sello el Permiso de Funcionamiento o el Permiso de Funcionamiento Condicionado dependiendo el caso.",8,null,11,"La autoridad de la unidad desconcentrada legaliza mediante su firma y sello el Permiso de Funcionamiento o el Permiso de Funcionamiento Condicionado dependiendo el caso.",8,null,11,"El Equipo Psicosocial de la UTA realizará el análisis y el informe psicosocial de los solicitantes, con la recomendación de idoneidad o no.",80,null,11,null,null,null,11]
[12,null,null,null,12,null,null,null,12,null,null,null,12,"El Coordinador de la UTA emitirá la declaratoria o no de idoneidad y realizará la notificación a los solicitantes.",40,null,12,null,null,null,12]
[13,null,null,null,13,null,null,null,13,null,null,null,13,"El Equipo Técnico de la UTA presentará el expediente al Comité de Asignación Familiar (CAF).",40,null,13,null,null,null,13]
[14,null,null,null,14,null,null,null,14,null,null,null,14,"El CAF analiza el expediente y realiza la asignación de una familia para la niña, niño y adolescente.",60,null,14,null,null,null,14]
[15,null,null,null,15,null,null,null,15,null,null,null,15,null,null,null,15,null,null,null,15]
[null,null,null,null,null,null,null,null,null,null,null,null,16]
[null,null,null,null,null,null,null,null,null,null,null,null,17]
[null,null,null,null,null,null,null,null,null,null,null,null,18]
[null,null,null,null,null,null,null,null,null,null,null,null,19]
[null,null,null,null,null,null,null,null,null,null,null,null,20]
[null,null,null,null,null,null,null,null,null,null,null,null,21]
[null,null,null,null,null,null,null,null,null,null,null,null,22]
[null,"SUMATORIA ACTIVIDADES",{"$f":"SUM(C32:C38)","v":114.88000000000001},null,null,"SUMATORIA ACTIVIDADES",{"$f":"SUM(G32:G53)","v":120},null,null,"SUMATORIA ACTIVIDADES",{"$f":"SUM(K32:K53)","v":120},null,23]
[null,null,null,null,null,null,null,null,null,null,null,null,24]
[null,null,null,null,null,null,null,null,null,null,null,null,25]
[null,null,null,null,null,null,null,null,null,null,null,null,null,"SUMATORIA ACTIVIDADES",{"$f":"SUM(O32:O56)","v":742},null,null,"SUMATORIA ACTIVIDADES",{"$f":"SUM(S32:S56)","v":184},null,null,"SUMATORIA ACTIVIDADES",{"$f":"SUM(W32:W56)","v":136}]
["TRÁMITE:","Aprobación del Estatuto y Otorgamiento de la Personalidad Jurídica",null,null,"TRÁMITE:","Registro de Directiva",null,null,"TRÁMITE:","Registro de Inclusión o Exclusión de Miembros"]
["NO.","ACTIVIDAD","TIEMPO (HORAS)",null,"NO.","ACTIVIDAD","TIEMPO (HORAS)",null,"NO.","ACTIVIDAD","TIEMPO (HORAS)"]
[1,"El Servidor responsable de receptar la documentación verificará mediante check list, que se haya adjuntado todos los requisitos y emitirá el recibo de incio de trámite a través del sistema documental institucional (QUIPUX) y en forma inmediata pasará a la autoridad para su conocimiento y reasignación a la unidad jurídica respectiva.",10,null,1,"El Servidor responsable de receptar la documentación verificará mediante check list, que se haya adjuntado todos los requisitos y emitirá el recibo de incio de trámite a través del sistema documental institucional (QUIPUX) y en forma inmediata pasará a la autoridad para su conocimiento y reasignación a la unidad jurídica respectiva.",14,null,1,"El servidor responsable de receptar la documentación, verificará mediante check list, que se haya adjuntado todos los requisitos y emitirá el recibo de inicio de trámite a través del sistema de gestión documental institucional (Quipux) y en forma inmediata pasará a la autoriadad para su conocimiento y reasignación a la unidad jurídica respectiva.",10]
[2,"El analista jurídico asignado de la Dirección Distrital, revisará que la documentación cumpla con lo establecido en el Reglamento, y demás disposiciones legales aplicables, luego de lo cual, en término de hasta diez días contados desde la fecha de ingreso del trámite a la institución, emitirá el informe motivado correspondiente.",80,null,2,"El analista jurídico asignado de la Dirección Distrital, revisará que la documentación cumpla con lo establecido en el Reglamento, y demás disposiciones legales aplicables, luego de lo cual, en término de hasta diez días contados desde la fecha de ingreso del trámite a la institución, emitirá el informe motivado correspondiente.",80,null,2,"El analista jurídico asignado, revisará que la documentación cumpla con lo establecido en el Reglamento y en el Estatuto, luego de lo cual emitirá un informe motivado dentro del térmno de hasta diez días contados desde la fecha de ingreso del trámite a la institución",80,null,"TRÁMITE:","Reforma y Codificación del Estatuto",null,null,"TRÁMITE:","Disolución y Liquidación Voluntaria",null,null,"TRÁMITE:","Otorgamiento del Crédito de Desarrollo Humano Individual"]
[3,"Si el informe es favorable el/la Coordinador Zona o Dirección Distrital, emitirá la Resolución de Aprobación del Estatuto y otorgará la personalidad jurídica, dentro de los trés días subsiguientes, contados desde que se puso en conocimiento el informe motivado.",20,null,3,"Si el informe es favorable, se adjuntará el proyecto de instrumento legal mediante el cual se registre la directiva, caso contrario se remitirá a la Organización Social, el informe motivado, con las observaciones y los motivos por los cuales no es posible realizar el registro, a fin de que se haga las correcciones y vuelva a ingresar el trámite",3,null,3,"Si el informe es favorable, se adjuntará el proyecto de instrumento legal mediante el cual se registra la inclusión o exlcusión de miembros, caso contrario se remitirá a la Organización Social, el informe motivado con las observaciones y los motivos por los cuales no es posible realizar el registro, a fin de que haga las correcciones y vuelva a reingresar el trámite.",8,null,"NO.","ACTIVIDAD","TIEMPO (HORAS)",null,"NO.","ACTIVIDAD","TIEMPO (HORAS)",null,"NO.","ACTIVIDAD","TIEMPO (HORAS)"]
[4,"Si el informe es negativo, se concederá a la organización social el término de hasta 20 días, para que complete los requisitos y reingrese la documentación para cuyo efecto se ejecutará el procedimiento establecido.",8,null,4,"El documento de registro de directiva o la negativa, deberá ser suscrito por el/la Coordinador/a Zonal o Directora Distrital, dentro del término de hasta tres días posteriores a la emisión del informe.",21,null,4,"El documento de registro de miembros o la negativa deberá ser suscrito por el Coordinador/a Zonal o Directora Distrital dentro término de hasta tres días posteriores a la emisión del informe.",20,null,1,"El servidor responsable de receptar la documentación, verificará mediante check list, que se haya adjuntado todos los requisitos y emitirá el recibo de inicio de trámite a través del sistema de gestión documental institucional (Quipux) y en forma inmediata pasará a la autoridad para su conocimiento y reasignación a la unidad jurídica respectiva.",10,null,1,"El Servidor responsable de receptar la documentación verificará mediante checklist que se hayan adjuntado todos lo requisitos y emitirá el recibo de inicio de trámites a través del Sistema de Gestión documental Institucional (Quipux) y en forma inmediata de recibido el trámite pasará a la autoridad quien reasignará el trámite respectivo.",10,null,1,"Los Técnicos de Inclusión Económica Distrital realizan la validación de datos de usuarios.",1]
[5,null,null,null,5,null,null,null,5,null,null,null,2,"El analista jurídico asignado, revisará que la documentación cumpla con lo establecido en el Decreto Ejecutivo 193 y demás disposiciones legales,  luego de lo cual emitirá un informe motivado en el término de 10 días contados a partir del ingreso del trámite a la institución.",80,null,2,"El analista jurídico asignado de la Coordinación Zonal o Dirección Distrital, revisará que la documentación cumpla con lo establecido en el Reglamento de este instructivo y en estatuto, luego de lo cual emitirá el informe motivado dentro del término de diez días contados desde la fecha de ingreso del trámite a la Institución.",80,null,2,"Capacitar en talleres a los usuarios para que pueden acceder al Crédito de Desarrollo Humano Individual.",7]
[6,null,null,null,6,null,null,null,6,null,null,null,3,"Si el informe es favorable, el/la Coordinador/a o Director/a Distrital, en un término de tres días emitirá la Resolución de la Reforma y Codificación del Estatuto.",24,null,3,"Si el informe es favorable, se adjuntara el proyecto de instrumento legal mediante el cual se acuerde la disolución y liquidación voluntaria, caso contrario se remitirá a la organización, el informe motivado con las observaciones y los motivos por los cuales no es posible realizar el acto a fin de que se haga las correcciones y vuelva a reingresar el trámite.",24,null,3,"Los Técnicos de Inclusión Económica Distrital, remiten vía correo electrónico el listado de usuarios que desean acceder al Crédito de Desarrollo Humano Individual, para solicitar lugar y fecha de desembolso",6]
[7,null,null,null,7,null,null,null,7,null,null,null,4,"Si el informe es negativo, se concederá a la organización el término de hasta veinte días para que complete los requisitos y reingrese la documentación.",4,null,4,"El instrumento legal de disolución y liquidación voluntaria deberá ser suscrito por el Coordinador Zonal o Director Distrital dentro del término de hasta tres días posteriores a la emisión del informe.",4,null,4,"La Dirección de Emprendimiento envía por correo electrónico a los Técnicos de Inclusión Económica Distrital; donde se notifica la fecha y lugar donde los usuarios recibirán el desembolso monetario.",6]
[8,null,null,null,8,null,null,null,8,null,null,null,5,null,null,null,5,null,null,null,5,"Los Técnicos de Inclusión Económica Distritales, notifican a los usuarios acerca de la fecha y lugar e informan a los usuarios los documentos habilitantes para el desembolso. ",1]
[9,null,null,null,9,null,null,null,9,null,null,null,6,null,null,null,6,null,null,null,6]
[10,null,null,null,10,null,null,null,10,null,null,null,7,null,null,null,7,null,null,null,7]
[11,null,null,null,11,null,null,null,11,null,null,null,8,null,null,null,8,null,null,null,8]
[12,null,null,null,12,null,null,null,12,null,null,null,9,null,null,null,9,null,null,null,9]
[13,null,null,null,13,null,null,null,13,null,null,null,10,null,null,null,10,null,null,null,10]
[14,null,null,null,14,null,null,null,14,null,null,null,11,null,null,null,11,null,null,null,11]
[15,null,null,null,15,null,null,null,15,null,null,null,12,null,null,null,12,null,null,null,12]
[null,null,null,null,null,null,null,null,null,null,null,null,13,null,null,null,13,null,null,null,13]
[null,null,null,null,null,null,null,null,null,null,null,null,14,null,null,null,14,null,null,null,14]
[null,null,null,null,null,null,null,null,null,null,null,null,15,null,null,null,15,null,null,null,15]
[]
[]
[]
[null,"SUMATORIA ACTIVIDADES",{"$f":"SUM(C60:C80)","v":118},null,null,"SUMATORIA ACTIVIDADES",{"$f":"SUM(G60:G80)","v":118},null,null,"SUMATORIA ACTIVIDADES",{"$f":"SUM(K60:K80)","v":118}]
[]
[]
["TRÁMITE:","Otorgamiento del Crédito de Desarrollo Humano Asociativo",null,null,"TRÁMITE:","Ingreso a centros diurnos de desarrollo integral para personas con discapacidad",null,null,"TRÁMITE:","Denuncias por el no cobro del Bono de Desarrollo Humano y Pensiones",null,null,null,"SUMATORIA ACTIVIDADES",{"$f":"SUM(O63:O83)","v":118},null,null,"SUMATORIA ACTIVIDADES",{"$f":"SUM(S63:S83)","v":118},null,null,"SUMATORIA ACTIVIDADES",{"$f":"SUM(W63:W83)","v":21}]
["NO.","ACTIVIDAD","TIEMPO (HORAS)",null,"NO.","ACTIVIDAD","TIEMPO (HORAS)",null,"NO.","ACTIVIDAD","TIEMPO (HORAS)"]
[1,"Validación de datos de usuarios.",2,null,1,"Llenar la solicitud de ingreso",8.3333333333333329E-2,null,1,"El técnico/a de Balcón de Servicios verifica la procedencia o no de la denuncia; recepta la denuncia y los documento habilitantes.",1]
[2,"Capacitar en talleres a los usuarios que pueden acceder al Crédito de Desarrollo Humano Asociativo",7,null,2,"Presentar los documentos habilitantes",0.16666666666666666,null,2,"El Técnico/a de Balcón de Servicios, remite el trámite al proceso de Gestión de Denuncias para su aprobación de ser el caso.",4,null,"TRÁMITE:","Habilitación, Autorización y transferencias de la Cobertura de contingencia",null,null,"TRÁMITE:","Certificación de Sustituto por Solidaridad Humana de Persona con Discapacidad",null,null,"TRÁMITE:","Calificación de nuevo beneficiario del Bono Joaquín Gallegos Lara para personas con discapacidad grave, muy grave y completa"]
[3,"Los Técnicos de Inclusión Económica de manera conjunta con el usuaria crean el Perfil de emprendimiento y posteriormente registran el Perfil en la Plataforma Sistema Integrado de Programas y Proyectos Sociales-SIPPS.",5,null,3,"Dar información durante el proceso de evaluación",7.666666666666667,null,3,"El Analista de denuncias verifica a través del sistema la solicitud y la documentación, aprueba la denuncia y se solicita comprobante o justificativo de pago a los Concentradores",270,null,"NO.","ACTIVIDAD","TIEMPO (HORAS)",null,"NO.","ACTIVIDAD","TIEMPO (HORAS)",null,"NO.","ACTIVIDAD","TIEMPO (HORAS)"]
[4,"Envio de memorando por parte de las Direcciones Distritales a la Dirección de Emprendimiento , con los Perfiles de Emprendimiento y la Carta compromiso de los socios para validación.",2,null,4,"Suscribir acta de compromiso en la que asume la corresponsabilidad en los procesos establecidos durante la permanencia de la Persona con Discapacidad en el servicio.",0.16666666666666666,null,4,"Los Concentradores remitirán el comprobante de pago en un plazo acorde al convenio establecido de pago",40,null,1,"Identificar la contingencia* Actividades que se realizan en las Direcciones Distritales a nivel nacional",40,null,1,"El técnico de Balcón de Servicios (Direcciones Distritales), recepta los requisitos que el usuario entrega, e ingresa los datos en Sistema SIIMIES e imprime por duplicado el formulario. Si el usuario no cumple con los criterios, el técnico del balcón de servicios explica al usuario el porque no cumple con los criterios de validación.",8.3333333333333329E-2,null,1,"El Tecnico de  balcón de servicios de la Dirección Distrital  recepta los documentos habilitantes y genera el formulario de solicitud en la herramienta SIIMIES.",2]
[5,"Reasignación a los técnicos de la Dirección Emprendimiento  para validación del perfil.",2,null,5,"Ingresar al usuario al servicio.",0.25,null,5,"El Analista de denuncia valida la información, y determina si el pago es justificado o no. Si el pago es No Justificado implica descuento a los concentradores y restitución de valores a los usuarios.",43.58,null,2,"Consolidar y enviar el expediente de cobertura de contingencias*",2,null,2,"Si el usuario cumple con los criterios de validación, el Técnico de la Unidad de Servicios Sociales analiza los requisitos y criterios de validación en el sistema.",8.3333333333333329E-2,null,2,"El solicitante firma el formulario y lo entrega al técnico de Balcon de Servicios.",1]
[6,"Validación del perfil de emprendimiento dentro del Sistema SIPPS.",1,null,6,null,null,null,6,"Notificar al usuario sobre la devolución de los valores.",0.5,null,3,"Recibir y validar la solicitud de contingencia",4,null,3,"El técnico de la Unidad de Servicios Sociales coordina, ejecuta la visita domiciliaria en coordinación con el solicitante.",24,null,3,"El técnico de balcón de servicios, si el usuario cumple los criterios de inclusión se procede a la visita domiciliaria, caso contrario se informa al solicitante el porque no cumple con los criterios de inclusión.",1]
[7,"La Dirección de Emprendimiento  envía memorando a las Direcciones Distritales; donde se notifica la fecha y lugar donde los usuarios recibirán el desembolso monetario.",2,null,7,null,null,null,7,null,null,null,4,"Realizar el rechazo o denegar el caso",2.5,null,4,"El técnico de la Unidad de Servicios Sociales elabora un informe técnico de resultado de la visita domiciliaria para acreditación y certificación de sustituto por solidaridad humana.",9,null,4,"El Técnico de Unidad de Servicios Sociales de la Dirección Distrital planifica y ejecuta la Visita Domiciliaria y aplica los instrumentos técnicos",240]
[8,"Los Técnicos de Inclusión Económica Distritales, notifican a los usuarios acerca de la fecha y lugar e informan a los usuarios los documento",{"$f":"15/60","v":0.25},null,8,null,null,null,8,null,null,null,5,"Cruzar la información para la habilitación de usuarios para pagos",3,null,5,"El Coordinador de la Unidad de Servicios, revisa el informe técnico y la ficha de condiciones de cuidado resultantes de la visita domiciliaria.",2,null,5,"El Coordinador/a de la unidad de servicios sociales de las Direcciones Distritales solicita se autorice la inclusión del usuario para ser habilitado como usuario del BJGL para personas con discapacidad grave, muy grave y completa.",43]
[9,null,null,null,9,null,null,null,9,null,null,null,6,"Realizar la habilitación de los usuarios para el pago",80,null,6,"El Director Distrital firma y aprueba el informe de técnico impreso de resultado de visita domiciliaria ",8.3333333333333329E-2,null,6,"Técnico/a de unidad de servicios sociales, realiza la inclusión en el sistema SIIMIES y notifica al usuario",1]
[10,null,null,null,10,null,null,null,10,null,null,null,7,"Realizar la notificación a los usuarios habilitados para el pago",80,null,7,"El Técnico de la unidad de Servicios Sociales solicita al usuario la entrega de la declaración juramentada.",1.6666666666666666E-2,null,7]
[11,null,null,null,11,null,null,null,11,null,null,null,8,"Realizar la conciliación de las transacciones de pago",22,null,8,"El Técnico de la Unidad de Servicios Sociales recepta la declaración juramentada e imprime por duplicado el acta compromiso, así como el certificado de sustituto por solidaridad.",1.6666666666666666E-2,null,8]
[12,null,null,null,12,null,null,null,12,null,null,null,9,"Autorizar el pago a los Switch Concentradores por concepto de transferencias monetarias y comisiones por Cobertura de Contingencia.",2.5833333333333335,null,9," El Director Distrital firma y sella los dos ejemplares.",8.3333333333333329E-2,null,9]
[13,null,null,null,13,null,null,null,13,null,null,null,10,"Compensar el pago a los switch concentradores por concepto de transferencias monetarias y comisiones por Cobertura de Contingencias",4,null,10,"El Técnico de la Unidad de Servicios Sociales entrega al usuario un ejemplar del certificado de sustituto por solidaridad humana y el acta compromiso para firma del usuario.",8.3333333333333329E-2,null,10]
[14,null,null,null,14,null,null,null,14,null,null,null,11,null,null,null,11,null,null,null,11]
[15,null,null,null,15,null,null,null,15,null,null,null,12,null,null,null,12,null,null,null,12]
[null,null,null,null,null,null,null,null,null,null,null,null,13,null,null,null,13,null,null,null,13]
[null,null,null,null,null,null,null,null,null,null,null,null,14,null,null,null,14]
[null,null,null,null,null,null,null,null,null,null,null,null,15,null,null,null,15]
[null,null,null,null,null,null,null,null,null,null,null,null,null,null,null,null,16]
[null,null,null,null,null,null,null,null,null,null,null,null,null,null,null,null,17]
[null,null,null,null,null,null,null,null,null,null,null,null,null,null,null,null,18]
[null,"SUMATORIA ACTIVIDADES",{"$f":"SUM(C86:C106)","v":21.25},null,null,"SUMATORIA ACTIVIDADES",{"$f":"SUM(G86:G106)","v":8.3333333333333339},null,null,"SUMATORIA ACTIVIDADES",{"$f":"SUM(K86:K106)","v":359.08}]
[]
[]
["TRÁMITE:","Calificación de nuevo beneficiario del Bono Joaquín Gallegos Lara para personas con enfermedades catastróficas raras y húerfanas",null,null,"TRÁMITE:","Calificación de nuevo beneficiario del Bono Joaquín Gallegos Lara para menores de 18 años viviendo con VIH-SIDA",null,null,"TRÁMITE:","Admisión de la solicitud de acceso a la información pública",null,null,null,"SUMATORIA ACTIVIDADES",{"$f":"SUM(O89:O109)","v":240.08333333333334},null,null,"SUMATORIA ACTIVIDADES",{"$f":"SUM(S89:S109)","v":35.45000000000001},null,null,"SUMATORIA ACTIVIDADES",{"$f":"SUM(W89:W109)","v":288}]
["NO.","ACTIVIDAD","TIEMPO (HORAS)",null,"NO.","ACTIVIDAD","TIEMPO (HORAS)",null,"NO.","ACTIVIDAD","TIEMPO (HORAS)"]
[1,"El Tecnico de  balcón de servicios de la Dirección Distrital  recepta los documentos habilitantes y genera el formulario de solicitud en la herramienta SIIMIES.",2,null,1,"El Tecnico de  balcón de servicios de la Dirección Distrital  recepta los documentos habilitantes y genera el formulario de solicitud en la herramienta SIIMIES.",2,null,1,"El usuario entrega la solicitud de información en las oficinas del MIES: Planta Central, Coordinaciones Zonales, Direcciones Distritales.",2]
[2,"El solicitante firma el formulario y lo entrega al técnico de Balcon de Servicios.",1,null,2,"El solicitante firma el formulario y lo entrega al técnico de Balcon de Servicios.",1,null,2,"La solicitud es cargada y reasignada a través de la plataforma QUIPUX, a la unidad responsable de emitir la respuesta.",2]
[3,"El técnico de balcón de servicios, si el usuario cumple los criterios de inclusión se procede a la visita domiciliaria, caso contrario se informa al solicitante el porque no cumple con los criterios de inclusión.",1,null,3,"El técnico de balcón de servicios, si el usuario cumple los criterios de inclusión se procede a la visita domiciliaria, caso contrario se informa al solicitante el porque no cumple con los criterios de inclusión.",1,null,3,"La unidad responsable de dicha información remite la respuesta al usuario, conforme a lo establecido en la normativa vigente.",116]
[4,"El Técnico de Unidad de Servicios Sociales de la Dirección Distrital planifica y ejecuta la Visita Domiciliaria y aplica los instrumentos técnicos",240,null,4,"El Técnico de Unidad de Servicios Sociales de la Dirección Distrital planifica y ejecuta la Visita Domiciliaria y aplica los instrumentos técnicos",240,null,4]
[5,"El Coordinador/a de la unidad de servicios sociales de las Direcciones Distritales solicita se autorice la inclusión del usuario para ser habilitado como usuario del BJGL para personas  con enfermedades catastróficas, raras y huérfanas.",43,null,5,"El Coordinador/a de la unidad de servicios sociales de las Direcciones Distritales solicita se autorice la inclusión del usuario para ser habilitado como usuario del BJGL para menores de 18 años con VIH/SIDA .",43,null,5]
[6,"Técnico/a de unidad de servicios sociales, realiza la inclusión en el sistema SIIMIES y notifica al usuario",1,null,6,"Técnico/a de unidad de servicios sociales, realiza la inclusión en el sistema SIIMIES y notifica al usuario",1,null,6]
[7,null,null,null,7,null,null,null,7]
[8,null,null,null,8,null,null,null,8]
[9,null,null,null,9,null,null,null,9]
[10,null,null,null,10,null,null,null,10]
[11,null,null,null,11,null,null,null,11]
[12,null,null,null,12,null,null,null,12]
[13,null,null,null,13,null,null,null,13]
[14,null,null,null,14,null,null,null,14]
[15,null,null,null,15,null,null,null,15]
[]
[]
[]
[]
[]
[]
[null,"SUMATORIA ACTIVIDADES",{"$f":"SUM(C112:C132)","v":288},null,null,"SUMATORIA ACTIVIDADES",{"$f":"SUM(G112:G132)","v":288},null,null,"SUMATORIA ACTIVIDADES",{"$f":"SUM(K112:K132)","v":120}]

{"sheet":"TIEMPO DE RESPUESTA","index":6,"n_rows":31,"n_cols":4,"rows_kept":31,"cut":false,"hidden":false,"merged":[[0,0,0,3],[1,0,1,3]]}
["PRIORIZACIÓN DE TRÁMITES ADMINISTRATIVOS"]
["TIEMPO DE RESPUESTA"]
[]
["IDENTIFICADOR","TRÁMITE","TIEMPO RESPUESTA (horas laborables)","PUNTUACIÓN"]
["MIES-015-02-01","Solicitud de Adopción Internacional para Niñas, Niños y Adolescentes",136,30]
["MIES-023-02-01","Certificado de Sustituto por Solidaridad Humana de Persona con Discapacidad",35,0]
["MIES-015-01-04","Solicitud de Adopción Nacional para Niñas, Niños y Adolescentes por Consentimiento",184,30]
["MIES-024-01-03","Calificación de nuevo beneficiario del Bono Joaquín Gallegos Lara para menores de 18 años viviendo con VIH-SIDA",288,30]
["MIES-016-01-05","Disolución y Liquidación Voluntaria de las Organizaciones Sociales sin fines de lucro.",118,30]
["MIES-015-01-01","Solicitud de Adopción Nacional para Niñas, Niños y Adolescentes",742,30]
["MIES-016-01-04","Reforma y Codificación del Estatuto de las Organizaciones Sociales sin fines de lucro.",118,30]
["MIES-019-01-01","Ingreso a Centros Diurnos de desarrollo integral para personas con discapacidad",8,0]
["MIES-003-01-02","Admisión e Ingreso de la Persona Adulta Mayor en Centros Gerontológicos Residenciales",115,30]
["MIES-021-02-01","Habilitación, Autorización y Transferencia de la Cobertura de Contingencia.",240,30]
["MIES-016-01-01","Aprobación del Estatuto y Otorgamiento de la Personalidad Jurídica de las Organizaciones Sociales sin fines de lucro.",118,30]
["MIES-014-01-01","Otorgamiento de Permisos de Funcionamiento para Centros de Desarrollo Infantil",120,30]
["MIES-014-01-02","Otorgamiento de Permisos de Funcionamiento para prestadores de servicios de Personas Adultas Mayores, Personas con Discapacidad y Protección Especial",120,30]
["MIES-016-01-03","Registro de Inclusión o Exclusión de Miembros de las Organizaciones Sociales sin fines de lucro.",118,30]
["MIES-011-01-01","Admisión de la Persona Adulta Mayor en Centros Gerontológicos de Atención Diurna",115,30]
["MIES-024-01-02","Calificación de nuevo beneficiario del Bono Joaquín Gallegos Lara para personas con enfermedades catastróficas raras y húerfanas",288,30]
["MIES-016-01-02","Registro de Directiva de las Organizaciones Sociales sin fines de lucro.",118,30]
["MIES-025-01-02","Admisión de la solicitud de acceso a la información pública",120,30]
["MIES-024-01-01","Calificación de nuevo beneficiario del Bono Joaquín Gallegos Lara para personas con discapacidad grave, muy grave y completa",288,30]
["MIES-013-01-01","Admisión de la Persona Adulta Mayor en Espacios de Socialización y de encuentro.",115,30]
["MIES-018-01-01","Otorgamiento del Crédito de Desarrollo Humano Individual",21,0]
["MIES-021-01-03","Denuncias por el no cobro del Bono de Desarrollo Humano y Pensiones",359,30]
["MIES-012-01-01","Admisión para la Atención Domiciliaria de Personas Adultas Mayores",115,30]
["MIES-018-02-01","Otorgamiento del Crédito de Desarrollo Humano Asociativo",21,0]
["MIES-001-01-02","Egreso del Servicio de Centros de Desarrollo Infantil por traslado de la niña o niño a otra unidad de atención o modalidad",0.5,0]
["MIES-001-01-01","Ingreso al Servicio de Centros de Desarrollo Infantil para niñas y niños de 1 a 3 años de edad",121,30]
["MIES-002-01-01","Ingreso al Servicio Misión Ternura - Creciendo con Nuestros Hijos",121,30]

{"sheet":"CANAL ATENCIÓN","index":7,"n_rows":31,"n_cols":12,"rows_kept":31,"cut":false,"hidden":false,"merged":[[0,0,0,3],[1,0,1,3]]}
["PRIORIZACIÓN DE TRÁMITES ADMINISTRATIVOS"]
["CANAL DE ATENCIÓN"]
[null,null,null,null,null,null,null,null,"Totalmente en Línea",null,null,0]
["IDENTIFICADOR","TRÁMITE","CANAL ATENCIÓN","PUNTUACIÓN",null,null,null,null,"No se completa totalmente en línea.",null,null,10]
["MIES-015-02-01","Solicitud de Adopción Internacional para Niñas, Niños y Adolescentes","No se completa totalmente en línea.",{"$f":"IF(ISBLANK(C5),\"\",IF(C5=\"Totalmente en línea\",0,IF(C5=\"Inicia en línea\",6,10)))","v":10}]
["MIES-023-02-01","Certificado de Sustituto por Solidaridad Humana de Persona con Discapacidad","No se completa totalmente en línea.",{"$f":"IF(ISBLANK(C6),\"\",IF(C6=\"Totalmente en línea\",0,IF(C6=\"Inicia en línea\",6,10)))","v":10}]
["MIES-015-01-04","Solicitud de Adopción Nacional para Niñas, Niños y Adolescentes por Consentimiento","No se completa totalmente en línea.",10]
["MIES-024-01-03","Calificación de nuevo beneficiario del Bono Joaquín Gallegos Lara para menores de 18 años viviendo con VIH-SIDA","No se completa totalmente en línea.",10]
["MIES-016-01-05","Disolución y Liquidación Voluntaria de las Organizaciones Sociales sin fines de lucro.","No se completa totalmente en línea.",10]
["MIES-015-01-01","Solicitud de Adopción Nacional para Niñas, Niños y Adolescentes","No se completa totalmente en línea.",10]
["MIES-016-01-04","Reforma y Codificación del Estatuto de las Organizaciones Sociales sin fines de lucro.","No se completa totalmente en línea.",10]
["MIES-019-01-01","Ingreso a Centros Diurnos de desarrollo integral para personas con discapacidad","No se completa totalmente en línea.",10]
["MIES-003-01-02","Admisión e Ingreso de la Persona Adulta Mayor en Centros Gerontológicos Residenciales","No se completa totalmente en línea.",10]
["MIES-021-02-01","Habilitación, Autorización y Transferencia de la Cobertura de Contingencia.","No se completa totalmente en línea.",10]
["MIES-016-01-01","Aprobación del Estatuto y Otorgamiento de la Personalidad Jurídica de las Organizaciones Sociales sin fines de lucro.","No se completa totalmente en línea.",10]
["MIES-014-01-01","Otorgamiento de Permisos de Funcionamiento para Centros de Desarrollo Infantil","No se completa totalmente en línea.",10]
["MIES-014-01-02","Otorgamiento de Permisos de Funcionamiento para prestadores de servicios de Personas Adultas Mayores, Personas con Discapacidad y Protección Especial","No se completa totalmente en línea.",10]
["MIES-016-01-03","Registro de Inclusión o Exclusión de Miembros de las Organizaciones Sociales sin fines de lucro.","No se completa totalmente en línea.",10]
["MIES-011-01-01","Admisión de la Persona Adulta Mayor en Centros Gerontológicos de Atención Diurna","No se completa totalmente en línea.",10]
["MIES-024-01-02","Calificación de nuevo beneficiario del Bono Joaquín Gallegos Lara para personas con enfermedades catastróficas raras y húerfanas","No se completa totalmente en línea.",10]
["MIES-016-01-02","Registro de Directiva de las Organizaciones Sociales sin fines de lucro.","No se completa totalmente en línea.",10]
["MIES-025-01-02","Admisión de la solicitud de acceso a la información pública","No se completa totalmente en línea.",10]
["MIES-024-01-01","Calificación de nuevo beneficiario del Bono Joaquín Gallegos Lara para personas con discapacidad grave, muy grave y completa","No se completa totalmente en línea.",10]
["MIES-013-01-01","Admisión de la Persona Adulta Mayor en Espacios de Socialización y de encuentro.","No se completa totalmente en línea.",10]
["MIES-018-01-01","Otorgamiento del Crédito de Desarrollo Humano Individual","No se completa totalmente en línea.",10]
["MIES-021-01-03","Denuncias por el no cobro del Bono de Desarrollo Humano y Pensiones","No se completa totalmente en línea.",10]
["MIES-012-01-01","Admisión para la Atención Domiciliaria de Personas Adultas Mayores","No se completa totalmente en línea.",10]
["MIES-018-02-01","Otorgamiento del Crédito de Desarrollo Humano Asociativo","No se completa totalmente en línea.",10]
["MIES-001-01-02","Egreso del Servicio de Centros de Desarrollo Infantil por traslado de la niña o niño a otra unidad de atención o modalidad","No se completa totalmente en línea.",10]
["MIES-001-01-01","Ingreso al Servicio de Centros de Desarrollo Infantil para niñas y niños de 1 a 3 años de edad","No se completa totalmente en línea.",10]
["MIES-002-01-01","Ingreso al Servicio Misión Ternura - Creciendo con Nuestros Hijos","No se completa totalmente en línea.",10]

{"sheet":"RESUMEN","index":8,"n_rows":30,"n_cols":25,"rows_kept":30,"cut":false,"hidden":false,"merged":[[1,0,2,0],[1,1,2,1],[1,2,2,2],[1,3,2,3],[1,4,2,4],[1,9,1,10],[1,11,1,12],[1,13,2,13],[0,2,0,6],[0,7,0,12],[1,5,2,5],[1,6,2,6],[1,7,1,8]]}
[null,null,"BÁSICOS",null,null,null,null,"ADICIONALES"]
["ID trámite","Nombre del trámite","Demanda","Quejas","Costo para administración","Tiempo de respuesta","Canal de atención","Necesidades ciudadanas",null,"Susceptibilidad a corrupción",null,"Volumen de devoluciones",null,"PUNTAJE TOTAL"]
[null,null,null,null,null,null,null,"Criterio","Puntuación","Criterio","Puntuación","Criterio","Puntuación",null,null,null,null,null,null,null,"demanda",0,3,6,10]
["MIES-015-02-01","Solicitud de Adopción Internacional para Niñas, Niños y Adolescentes",3,0,20,30,10,"SI",{"$f":"IF(H4=\"SI\",5,0)","v":5},"NO",{"$f":"IF(J4=\"SI\",10,0)","v":0},"NO",{"$f":"IF(L4=\"SI\",5,0)","v":0},{"$f":"SUM(C4:G4,I4,K4,M4)","v":68},null,null,null,null,null,null,"quejas",0,4,10]
["MIES-023-02-01","Certificado de Sustituto por Solidaridad Humana de Persona con Discapacidad",3,0,5,0,10,"SI",{"$f":"IF(H5=\"SI\",5,0)","v":5},"NO",{"$f":"IF(J5=\"SI\",10,0)","v":0},"NO",{"$f":"IF(L5=\"SI\",5,0)","v":0},{"$f":"SUM(C5:G5,I5,K5,M5)","v":23},null,null,null,null,null,null,"cpa",5,10,20]
["MIES-015-01-04","Solicitud de Adopción Nacional para Niñas, Niños y Adolescentes por Consentimiento",3,0,20,30,10,"SI",5,"NO",0,"NO",0,68,null,null,null,null,null,null,"tr",0,30]
["MIES-024-01-03","Calificación de nuevo beneficiario del Bono Joaquín Gallegos Lara para menores de 18 años viviendo con VIH-SIDA",3,0,20,30,10,"SI",5,"SI",10,"NO",0,78,null,null,null,null,null,null,"ca",0,10]
["MIES-016-01-05","Disolución y Liquidación Voluntaria de las Organizaciones Sociales sin fines de lucro.",3,0,10,30,10,"SI",5,"NO",0,"NO",0,58,null,null,null,null,null,null,null,"SI","NO"]
["MIES-015-01-01","Solicitud de Adopción Nacional para Niñas, Niños y Adolescentes",3,10,20,30,10,"SI",5,"NO",0,"NO",0,78]
["MIES-016-01-04","Reforma y Codificación del Estatuto de las Organizaciones Sociales sin fines de lucro.",3,0,10,30,10,"SI",5,"NO",0,"SI",5,63]
["MIES-019-01-01","Ingreso a Centros Diurnos de desarrollo integral para personas con discapacidad",3,4,5,0,10,"SI",5,"NO",0,"NO",0,27]
["MIES-003-01-02","Admisión e Ingreso de la Persona Adulta Mayor en Centros Gerontológicos Residenciales",3,0,5,30,10,"SI",5,"NO",0,"NO",0,53]
["MIES-021-02-01","Habilitación, Autorización y Transferencia de la Cobertura de Contingencia.",6,0,20,30,10,"SI",5,"SI",10,"NO",0,81]
["MIES-016-01-01","Aprobación del Estatuto y Otorgamiento de la Personalidad Jurídica de las Organizaciones Sociales sin fines de lucro.",6,0,10,30,10,"SI",5,"NO",0,"SI",5,66]
["MIES-014-01-01","Otorgamiento de Permisos de Funcionamiento para Centros de Desarrollo Infantil",6,4,10,30,10,"SI",5,"NO",0,"SI",5,70]
["MIES-014-01-02","Otorgamiento de Permisos de Funcionamiento para prestadores de servicios de Personas Adultas Mayores, Personas con Discapacidad y Protección Especial",6,0,10,30,10,"SI",5,"NO",0,"SI",5,66]
["MIES-016-01-03","Registro de Inclusión o Exclusión de Miembros de las Organizaciones Sociales sin fines de lucro.",6,0,10,30,10,"SI",5,"NO",0,"SI",5,66]
["MIES-011-01-01","Admisión de la Persona Adulta Mayor en Centros Gerontológicos de Atención Diurna",6,0,5,30,10,"SI",5,"NO",0,"NO",0,56]
["MIES-024-01-02","Calificación de nuevo beneficiario del Bono Joaquín Gallegos Lara para personas con enfermedades catastróficas raras y húerfanas",6,0,20,30,10,"SI",5,"SI",10,"NO",0,81]
["MIES-016-01-02","Registro de Directiva de las Organizaciones Sociales sin fines de lucro.",6,0,10,30,10,"SI",5,"NO",0,"SI",5,66]
["MIES-025-01-02","Admisión de la solicitud de acceso a la información pública",6,0,10,30,10,"SI",5,"NO",0,"NO",0,61]
["MIES-024-01-01","Calificación de nuevo beneficiario del Bono Joaquín Gallegos Lara para personas con discapacidad grave, muy grave y completa",10,4,20,30,10,"SI",5,"SI",10,"NO",0,89]
["MIES-013-01-01","Admisión de la Persona Adulta Mayor en Espacios de Socialización y de encuentro.",10,4,5,30,10,"SI",5,"NO",0,"NO",0,64]
["MIES-018-01-01","Otorgamiento del Crédito de Desarrollo Humano Individual",10,4,5,0,10,"SI",5,"SI",10,"NO",0,44]
["MIES-021-01-03","Denuncias por el no cobro del Bono de Desarrollo Humano y Pensiones",10,4,20,30,10,"SI",5,"SI",10,"NO",0,89]
["MIES-012-01-01","Admisión para la Atención Domiciliaria de Personas Adultas Mayores",10,4,5,30,10,"SI",5,"NO",0,"NO",0,64]
["MIES-018-02-01","Otorgamiento del Crédito de Desarrollo Humano Asociativo",10,4,5,0,10,"SI",5,"SI",10,"NO",0,44]
["MIES-001-01-02","Egreso del Servicio de Centros de Desarrollo Infantil por traslado de la niña o niño a otra unidad de atención o modalidad",10,0,5,0,10,"SI",5,"NO",0,"NO",0,30]
["MIES-001-01-01","Ingreso al Servicio de Centros de Desarrollo Infantil para niñas y niños de 1 a 3 años de edad",10,4,10,30,10,"SI",5,"NO",0,"NO",0,69]
["MIES-002-01-01","Ingreso al Servicio Misión Ternura - Creciendo con Nuestros Hijos",10,4,10,30,10,"SI",5,"NO",0,"NO",0,69]